bitfinex-derivatives/quotes_SOLF0:USTF0_20260226
["timestamp","ask_amount","ask_price","bid_price","bid_amount"]
[1772124771628,32.35175721,84.612,84.56,21.59121415]
[1772124771827,32.35175721,84.612,84.56,10.6429]
[1772124772425,32.35175721,84.612,84.556,10.94831415]
[1772124772426,32.35301725,84.61,84.556,10.94831415]
[1772124772626,32.35301725,84.61,84.552,10.94831415]
[1772124773037,32.35301725,84.61,84.547,10.94831415]
[1772124773237,32.35301725,84.61,84.54,10.94831415]
[1772124773430,32.35301725,84.61,84.543,10.94831415]
[1772124773626,32.45832965,84.593,84.539,10.94831415]
[1772124773931,32.45832965,84.593,84.53,8.64767364]
[1772124773932,32.45832965,84.593,84.533,10.94831415]
[1772124774132,10.6399,84.584,84.533,10.94831415]
[1772124774333,32.45966719,84.584,84.535,10.94831415]
[1772124774536,32.45966719,84.584,84.538,10.94831415]
[1772124774930,32.45966719,84.584,84.539,10.94831415]
[1772124775132,32.45966719,84.584,84.538,10.94831415]
[1772124775334,32.45966719,84.584,84.539,10.94831415]
[1772124775534,32.45966719,84.584,84.54,10.94831415]
[1772124775734,32.45966719,84.584,84.537,10.94831415]
[1772124775936,32.45966719,84.584,84.53,10.96902578]
[1772124776136,32.45966719,84.584,84.502,14.62862903]
[1772124776336,10.6446,84.548,84.498,14.62862903]
[1772124776537,26.95150294,84.547,84.493,14.62862903]
[1772124776737,26.95150294,84.547,84.487,14.62862903]
[1772124777039,8.64767364,84.57,84.487,14.62862903]
[1772124777040,26.9786526,84.544,84.487,14.62862903]
[1772124777236,26.9786526,84.544,84.472,14.62862903]
[1772124777432,26.9786526,84.544,84.466,14.62862903]
[1772124777638,26.9786526,84.529,84.467,25.28322903]
[1772124777835,26.9786526,84.529,84.467,10.6546]
[1772124778244,26.9786526,84.529,84.47,14.62862903]
[1772124778437,8.64767364,84.55,84.46,8.64767364]
[1772124778438,37.62808925,84.52,84.466,14.62862903]
[1772124778639,37.62808925,84.52,84.465,14.64064613]
[1772124778835,26.98008925,84.537,84.474,10.6537]
[1772124779041,26.98008925,84.537,84.475,14.64064613]
[1772124779235,26.98008925,84.537,84.466,14.64064613]
[1772124779546,37.05130021,84.527,84.468,10.6544]
[1772124779742,26.40420021,84.527,84.468,10.6544]
[1772124779938,26.40420021,84.527,84.471,14.64064613]
[1772124780139,10.6489,84.514,84.462,14.64064613]
[1772124780347,37.05378852,84.514,84.461,14.64064613]
[1772124780557,26.40488852,84.514,84.466,10.6548]
[1772124780754,26.40488852,84.514,84.451,14.64064613]
[1772124781049,10.651,84.497,84.434,14.64064613]
[1772124781259,25.6231176,84.496,84.43,8.64767364]
[1772124781645,25.6231176,84.496,84.43,23.28831977]
[1772124781844,25.6231176,84.496,84.443,10.6576]
[1772124782352,25.62285207,84.516,84.451,10.6567]
[1772124782748,25.62285207,84.516,84.451,25.29734613]
[1772124782957,25.62285207,84.539,84.459,14.64064613]
[1772124783649,25.58119499,84.523,84.455,14.64064613]
[1772124783857,25.58119499,84.523,84.471,14.64064613]
[1772124784053,25.58119499,84.523,84.48,14.64064613]
[1772124784253,25.58119499,84.523,84.481,14.64064613]
[1772124784462,330.9706,84.598,84.46,8.64767364]
[1772124784463,25.58088993,84.541,84.483,14.64064613]
[1772124784758,25.58088993,84.541,84.5,14.64064613]
[1772124785052,25.58088993,84.541,84.501,14.64064613]
[1772124785452,10.6481,84.52,84.481,21.94165878]
[1772124785654,36.20760332,84.52,84.466,21.94165878]
[1772124785959,36.20760332,84.52,84.465,21.94165878]
[1772124786357,36.20760332,84.52,84.467,21.94165878]
[1772124786854,25.55950332,84.52,84.464,21.94165878]
[1772124787053,25.55950332,84.52,84.468,21.94165878]
[1772124787253,25.7164859,84.559,84.477,21.94165878]
[1772124787453,25.7164859,84.559,84.483,21.94165878]
[1772124787758,25.7164859,84.559,84.487,21.94165878]
[1772124787964,25.7164859,84.559,84.488,21.94165878]
[1772124788153,8.64767364,84.58,84.487,21.94165878]
[1772124788154,25.71634727,84.548,84.487,21.94165878]
[1772124788354,25.71634727,84.548,84.479,21.94165878]
[1772124788553,25.71634727,84.548,84.475,21.94165878]
[1772124788757,165.4503,84.615,84.46,70.64767364]
[1772124788758,25.71634727,84.542,84.488,21.94165878]
[1772124788957,25.71634727,84.542,84.472,21.94165878]
[1772124789156,10.6463,84.534,84.475,21.94165878]
[1772124789353,25.71634727,84.542,84.488,21.94165878]
[1772124789553,25.71634727,84.542,84.493,21.94165878]
[1772124790664,23.9141954,84.549,84.464,22.55769788]
[1772124790957,23.9141954,84.549,84.471,22.55769788]
[1772124791163,23.9141954,84.579,84.503,21.76337616]
[1772124791351,23.9141954,84.579,84.484,21.76337616]
[1772124791552,23.9141954,84.569,84.484,21.76337616]
[1772124791859,23.9141954,84.548,84.484,21.76337616]
[1772124792251,23.9141954,84.548,84.464,22.05501806]
[1772124792457,10.6476,84.523,84.464,22.05501806]
[1772124792756,23.9141954,84.523,84.464,22.05501806]
[1772124792963,34.5636954,84.509,84.448,10.657]
[1772124793164,23.9141954,84.509,84.448,10.657]
[1772124793456,23.9141954,84.509,84.446,22.1206871]
[1772124794055,21.2888,84.549,84.446,22.1206871]
[1772124794255,21.2888,84.549,84.44,70.63573873]
[1772124794256,23.9141954,84.548,84.464,22.39530677]
[1772124795057,23.9141954,84.548,84.481,22.45927195]
[1772124795763,10.6437,84.554,84.5,8.63573873]
[1772124796454,10.6424,84.565,84.502,22.65544943]
[1772124797562,23.9141954,84.56,84.502,22.65544943]
[1772124798367,23.9141954,84.589,84.502,22.65544943]
[1772124798560,23.9141954,84.589,84.52,8.63573873]
[1772124798761,23.9141954,84.574,84.482,29.12321287]
[1772124798957,23.9141954,84.559,84.47,8.63573873]
[1772124799162,10.6481,84.52,84.461,23.14611415]
[1772124799461,23.9141954,84.524,84.461,23.14611415]
[1772124799862,34.5617954,84.523,84.461,23.14611415]
[1772124800065,23.9141954,84.522,84.461,23.14611415]
[1772124800456,23.9141954,84.51,84.45,8.63573873]
[1772124800662,23.9141954,84.51,84.439,23.26423882]
[1772124800862,23.9141954,84.51,84.441,10.658]
[1772124800863,10.6498,84.506,84.441,10.658]
[1772124801062,34.5639954,84.506,84.441,10.658]
[1772124801259,34.5639954,84.506,84.439,23.26423882]
[1772124801260,23.9141954,84.506,84.439,23.26423882]
[1772124801468,10.6511,84.496,84.439,23.26423882]
[1772124801666,23.9141954,84.495,84.43,8.63573873]
[1772124801865,23.9141954,84.495,84.431,23.33520435]
[1772124802066,23.9141954,84.495,84.433,23.33631223]
[1772124802862,23.9141954,84.493,84.414,23.39242259]
[1772124803071,23.9141954,84.489,84.396,23.2435763]
[1772124803267,23.9141954,84.469,84.396,23.2435763]
[1772124803866,23.9141954,84.469,84.407,40.96769358]
[1772124804064,23.9141954,84.469,84.38,62.0]
[1772124804266,23.9141954,84.469,84.401,25.1268222]
[1772124804667,23.9141954,84.469,84.39,8.63573873]
[1772124804868,23.9141954,84.456,84.385,10.6649]
[1772124805065,23.9141954,84.456,84.386,25.1268222]
[1772124805265,23.9141954,84.489,84.401,25.1268222]
[1772124805668,23.9141954,84.479,84.413,10.6614]
[1772124806072,23.9141954,84.479,84.414,25.1268222]
[1772124806266,23.9141954,84.479,84.4,8.63573873]
[1772124806460,23.9141954,84.479,84.401,25.1268222]
[1772124806865,23.9141954,84.467,84.401,25.1268222]
[1772124807369,10.6561,84.457,84.392,10.6641]
[1772124807570,23.9141954,84.456,84.392,10.6641]
[1772124808566,23.9141954,84.456,84.392,25.1268222]
[1772124808762,23.9141954,84.456,84.401,10.663]
[1772124809868,23.9141954,84.456,84.392,35.7909222]
[1772124810472,23.9141954,84.45,84.392,35.7909222]
[1772124810872,23.9141954,84.45,84.4,10.663]
[1772124811068,23.9141954,84.479,84.4,10.663]
[1772124811272,10.6566,84.452,84.392,25.1268222]
[1772124811569,23.9141954,84.451,84.374,25.1268222]
[1772124811765,10.6547,84.468,84.397,25.1268222]
[1772124811971,23.9141954,84.467,84.397,25.1268222]
[1772124813874,23.9141954,84.467,84.392,10.6641]
[1772124814376,8.63573873,84.47,84.361,25.1268222]
[1772124814377,10.6586,84.437,84.361,25.1268222]
[1772124814576,23.9141954,84.449,84.361,25.1268222]
[1772124814975,26.27178942,84.439,84.37,10.6668]
[1772124815176,26.27178942,84.439,84.361,25.1268222]
[1772124816074,292.74032235,84.45,84.361,25.1268222]
[1772124816075,26.27178942,84.437,84.361,25.1268222]
[1772124816870,26.27178942,84.437,84.362,25.69443888]
[1772124817277,292.74032235,84.45,84.391,10.6643]
[1772124817778,292.74032235,84.45,84.399,10.6632]
[1772124817981,292.74032235,84.45,84.383,14.53681216]
[1772124818184,292.74032235,84.45,84.401,25.69443888]
[1772124819084,292.74032235,84.45,84.414,10.6613]
[1772124819281,292.74032235,84.45,84.401,25.69443888]
[1772124819584,256.74032235,84.45,84.406,25.70440175]
[1772124819780,256.74032235,84.45,84.424,10.66]
[1772124820081,256.74032235,84.45,84.406,25.70440175]
[1772124820783,256.74032235,84.45,84.411,25.70440175]
[1772124821176,256.74032235,84.45,84.413,10.6614]
[1772124821376,256.74032235,84.45,84.411,25.70440175]
[1772124822187,256.74032235,84.45,84.413,10.6614]
[1772124822681,256.74032235,84.45,84.411,25.70440175]
[1772124823288,24.54301759,84.492,84.437,10.6584]
[1772124823888,24.54301759,84.492,84.445,10.6574]
[1772124824080,24.54301759,84.492,84.431,25.70440175]
[1772124824381,24.54301759,84.529,84.431,25.70440175]
[1772124824785,24.54301759,84.523,84.461,10.6554]
[1772124825287,24.54301759,84.523,84.448,25.70440175]
[1772124825587,24.54301759,84.514,84.431,25.70440175]
[1772124826088,24.54301759,84.469,84.394,25.70440175]
[1772124826588,24.54301759,84.469,84.421,10.6604]
[1772124826782,24.54301759,84.469,84.401,25.70440175]
[1772124827384,24.54301759,84.469,84.411,10.6616]
[1772124828792,10.6546,84.468,84.411,10.6616]
[1772124829782,24.54301759,84.467,84.411,10.6616]
[1772124830088,10.6551,84.464,84.402,10.6628]
[1772124830279,24.54301759,84.467,84.401,25.70440175]
[1772124830485,35.19781759,84.467,84.401,25.70440175]
[1772124830685,24.54301759,84.467,84.401,25.70440175]
[1772124832187,24.54301759,84.489,84.401,25.70440175]
[1772124832688,24.54301759,84.489,84.369,21.334]
[1772124832689,24.54301759,84.489,84.411,25.70440175]
[1772124832886,24.54301759,84.472,84.414,10.6613]
[1772124833085,24.54301759,84.472,84.414,25.70440175]
[1772124833484,10.6527,84.483,84.414,25.70440175]
[1772124833680,24.54301759,84.489,84.414,25.70440175]
[1772124834085,24.54301759,84.489,84.429,25.70440175]
[1772124834890,24.54301759,84.489,84.442,10.6578]
[1772124835590,24.54301759,84.489,84.429,25.70440175]
[1772124836792,24.54301759,84.489,84.437,10.6584]
[1772124838793,24.54301759,84.489,84.444,10.6575]
[1772124839095,24.54301759,84.507,84.441,25.70440175]
[1772124839486,10.6499,84.506,84.451,10.6566]
[1772124839890,24.54301759,84.505,84.421,25.70440175]
[1772124840095,10.6511,84.496,84.435,36.36310175]
[1772124840297,24.54301759,84.505,84.435,25.70440175]
[1772124841092,24.54301759,84.496,84.435,25.70440175]
[1772124841591,24.54301759,84.477,84.414,10.6613]
[1772124841787,24.54301759,84.477,84.411,25.70440175]
[1772124841989,24.54301759,84.496,84.431,25.70440175]
[1772124842697,24.54301759,84.537,84.471,25.70440175]
[1772124842886,24.54301759,84.537,84.47,8.63573873]
[1772124843086,24.54301759,84.52,84.452,25.70440175]
[1772124843993,24.54301759,84.52,84.45,70.63573873]
[1772124843994,24.54301759,84.541,84.471,25.70440175]
[1772124844596,24.54301759,84.529,84.471,25.70440175]
[1772124844993,24.54301759,84.529,84.479,10.6531]
[1772124845196,24.54301759,84.529,84.45,62.0]
[1772124845197,24.54301759,84.529,84.451,25.70440175]
[1772124845400,24.54301759,84.529,84.47,8.63573873]
[1772124845795,10.6454,84.541,84.476,25.70440175]
[1772124846102,284.38692652,84.542,84.49,8.63573873]
[1772124846292,284.38692652,84.542,84.491,25.70440175]
[1772124846896,284.38692652,84.542,84.499,10.6505]
[1772124847091,284.38692652,84.542,84.501,25.70440175]
[1772124848204,284.38692652,84.542,84.502,10.6502]
[1772124848396,284.38692652,84.542,84.501,25.70440175]
[1772124848796,284.38692652,84.542,84.502,36.35460175]
[1772124848998,284.38692652,84.542,84.503,25.70440175]
[1772124849198,284.38692652,84.542,84.504,10.65]
[1772124849500,310.65789116,84.542,84.481,27.04238043]
[1772124849702,26.27096464,84.539,84.477,10.6533]
[1772124849902,26.27096464,84.539,84.462,27.04238043]
[1772124850394,10.6481,84.52,84.462,27.04238043]
[1772124850700,26.27096464,84.519,84.462,27.04238043]
[1772124851101,10.6486,84.515,84.462,27.04238043]
[1772124851496,36.91956464,84.515,84.451,10.6566]
[1772124851710,10.6491,84.512,84.451,10.6566]
[1772124852204,10.6491,84.512,84.44,8.64101233]
[1772124852205,26.27096464,84.535,84.465,10.6548]
[1772124852804,26.27096464,84.535,84.419,29.15369241]
[1772124852805,26.27096464,84.535,84.466,27.04238043]
[1772124853606,26.27096464,84.535,84.475,37.69598043]
[1772124853800,26.27096464,84.541,84.476,27.04238043]
[1772124855008,26.27096464,84.539,84.477,10.6533]
[1772124855410,26.27096464,84.539,84.476,27.04238043]
[1772124856011,26.27096464,84.527,84.469,10.6544]
[1772124856211,26.27096464,84.527,84.441,27.04238043]
[1772124857408,26.27096464,84.527,84.461,27.04238043]
[1772124857805,26.27096464,84.527,84.472,10.654]
[1772124858406,284.38692652,84.542,84.481,27.04238043]
[1772124858811,26.27096464,84.541,84.462,27.04238043]
[1772124859008,26.27096464,84.531,84.474,10.6538]
[1772124859209,26.27096464,84.531,84.462,27.04238043]
[1772124860017,26.27096464,84.509,84.446,10.6572]
[1772124860314,26.27096464,84.509,84.435,27.04238043]
[1772124860518,10.6506,84.5,84.444,10.6575]
[1772124860715,36.92156464,84.5,84.444,10.6575]
[1772124860915,26.27096464,84.499,84.444,10.6575]
[1772124861620,26.27096464,84.499,84.43,8.64101233]
[1772124861621,26.27096464,84.499,84.441,27.04238043]
[1772124861808,26.27096464,84.539,84.441,27.04238043]
[1772124862114,10.6476,84.524,84.464,10.655]
[1772124862313,36.91856464,84.524,84.464,10.655]
[1772124862910,26.27096464,84.523,84.464,10.655]
[1772124863419,26.27096464,84.523,84.466,14.59247818]
[1772124863716,26.27096464,84.523,84.467,27.04238043]
[1772124863921,26.27096464,84.541,84.471,27.04238043]
[1772124864108,26.27096464,84.541,84.472,14.59247818]
[1772124864313,26.27096464,84.54,84.477,10.6534]
[1772124864718,26.27096464,84.54,84.485,27.04238043]
[1772124864915,284.38692652,84.542,84.491,27.04238043]
[1772124866116,284.38692652,84.542,84.491,41.63485861]
[1772124866319,284.38692652,84.542,84.493,10.6514]
[1772124866720,284.38692652,84.542,84.491,27.04238043]
[1772124867214,284.38692652,84.542,84.491,41.63485861]
[1772124867413,284.38692652,84.542,84.485,10.6524]
[1772124867414,26.27096464,84.541,84.485,10.6524]
[1772124867720,26.27096464,84.541,84.476,14.59247818]
[1772124868220,284.38692652,84.542,84.472,27.04238043]
[1772124868221,26.27096464,84.539,84.477,10.6533]
[1772124868421,26.27096464,84.539,84.472,14.59247818]
[1772124868715,26.27096464,84.539,84.471,14.59247818]
[1772124869315,26.27096464,84.539,84.474,14.59247818]
[1772124869719,26.27096464,84.539,84.471,14.59247818]
[1772124870212,26.27096464,84.539,84.472,14.59247818]
[1772124870418,26.27096464,84.539,84.471,14.59247818]
[1772124870916,26.27096464,84.539,84.46,92.56947881]
[1772124870917,26.27096464,84.532,84.467,14.59247818]
[1772124871423,26.27096464,84.532,84.468,14.59247818]
[1772124872023,26.27096464,84.516,84.454,27.04238043]
[1772124872224,26.27096464,84.516,84.449,14.59247818]
[1772124872525,36.92156464,84.5,84.445,14.59247818]
[1772124872715,26.27096464,84.499,84.44,14.59247818]
[1772124873022,26.27096464,84.499,84.431,14.59247818]
[1772124873224,26.27096464,84.499,84.432,14.59247818]
[1772124873419,26.27096464,84.499,84.433,27.04238043]
[1772124873624,26.27096464,84.499,84.422,14.59247818]
[1772124873824,26.27096464,84.499,84.42,8.64101233]
[1772124874921,26.27096464,84.499,84.425,27.28316366]
[1772124876121,10.6524,84.485,84.426,10.6598]
[1772124876420,26.27096464,84.499,84.429,27.28316366]
[1772124876726,26.27096464,84.499,84.431,27.28316366]
[1772124877423,26.27096464,84.499,84.412,27.28316366]
[1772124877820,26.27096464,84.499,84.424,27.28316366]
[1772124878025,26.27096464,84.499,84.431,27.28316366]
[1772124878523,26.65791792,84.528,84.461,10.6554]
[1772124878920,26.65791792,84.528,84.451,27.28316366]
[1772124879123,26.65791792,84.516,84.452,10.6565]
[1772124879422,26.65791792,84.516,84.425,22.00223292]
[1772124879423,26.65791792,84.516,84.433,27.28316366]
[1772124879817,27.35702222,84.502,84.436,28.07567243]
[1772124880016,27.35702222,84.502,84.441,28.07567243]
[1772124880223,27.35702222,84.502,84.445,28.07567243]
[1772124880423,27.35702222,84.519,84.445,28.07567243]
[1772124880624,27.35702222,84.519,84.448,28.07567243]
[1772124880824,27.35702222,84.519,84.46,8.64101233]
[1772124881319,27.35702222,84.517,84.44,36.71668476]
[1772124882422,10.6491,84.512,84.446,28.07567243]
[1772124882929,27.35702222,84.515,84.46,8.64101233]
[1772124884424,10.6498,84.507,84.451,14.59247818]
[1772124884630,10.6498,84.507,84.448,10.6571]
[1772124884631,27.35702222,84.515,84.448,10.6571]
[1772124885424,10.6505,84.501,84.44,10.6581]
[1772124885622,27.35702222,84.5,84.431,14.59247818]
[1772124885826,27.35702222,84.5,84.43,8.64101233]
[1772124886127,27.35702222,84.5,84.422,14.59247818]
[1772124886128,38.00992222,84.482,84.421,14.59247818]
[1772124886328,27.35702222,84.481,84.418,10.6609]
[1772124886530,27.35702222,84.481,84.416,28.07567243]
[1772124887035,27.35702222,84.454,84.397,28.07567243]
[1772124887526,27.35702222,84.454,84.384,28.07567243]
[1772124889134,10.6574,84.446,84.386,10.6648]
[1772124889431,27.35702222,84.454,84.384,28.07567243]
[1772124890222,38.01352222,84.453,84.384,28.07567243]
[1772124890430,27.35702222,84.452,84.384,28.07567243]
[1772124890830,27.35702222,84.489,84.401,28.07567243]
[1772124891525,27.35702222,84.454,84.383,28.07567243]
[1772124892634,10.6575,84.445,84.383,38.74087243]
[1772124892930,38.01342222,84.454,84.387,28.07567243]
[1772124893234,27.35702222,84.489,84.401,28.07567243]
[1772124893630,10.6553,84.462,84.401,28.07567243]
[1772124893936,27.35702222,84.466,84.401,28.07567243]
[1772124894128,27.35702222,84.466,84.4,8.64101233]
[1772124894329,27.35702222,84.447,84.383,28.07567243]
[1772124894932,10.6579,84.442,84.383,28.07567243]
[1772124895538,10.6585,84.437,84.386,14.59247818]
[1772124895834,10.6585,84.437,84.383,28.07567243]
[1772124896536,10.6594,84.43,84.38,8.64101233]
[1772124897134,27.35702222,84.424,84.365,28.07567243]
[1772124897338,27.35702222,84.469,84.381,28.07567243]
[1772124897551,27.35702222,84.469,84.382,28.07567243]
[1772124897834,27.35702222,84.495,84.389,14.59247818]
[1772124898032,27.35702222,84.495,84.401,28.07567243]
[1772124898233,38.01312222,84.456,84.404,14.60367449]
[1772124898436,27.35702222,84.455,84.4,8.64101233]
[1772124898633,27.35702222,84.455,84.392,10.6641]
[1772124898828,27.35702222,84.452,84.391,14.60367449]
[1772124899638,27.35702222,84.452,84.39,8.64101233]
[1772124899639,27.35702222,84.452,84.393,28.07567243]
[1772124900234,27.35702222,84.472,84.41,8.64101233]
[1772124900434,27.35702222,84.472,84.411,28.07567243]
[1772124900636,27.35702222,84.489,84.412,28.07567243]
[1772124900837,27.35702222,84.489,84.431,28.07567243]
[1772124901132,27.35702222,84.489,84.433,28.07567243]
[1772124901337,27.35702222,84.489,84.421,14.60367449]
[1772124901542,27.35702222,84.489,84.414,28.07567243]
[1772124902040,27.35702222,84.489,84.42,14.60367449]
[1772124902240,27.35702222,84.489,84.43,8.64101233]
[1772124902843,27.35702222,84.486,84.43,8.64101233]
[1772124903043,27.35702222,84.486,84.422,14.60367449]
[1772124903238,27.35702222,84.486,84.41,8.64101233]
[1772124903441,8.64101233,84.5,84.41,8.64101233]
[1772124903442,27.35702222,84.465,84.41,8.64101233]
[1772124903844,27.35702222,84.465,84.403,28.07567243]
[1772124904047,27.35702222,84.465,84.385,28.07567243]
[1772124905042,27.35702222,84.483,84.42,8.64101233]
[1772124906340,38.00972222,84.483,84.423,10.6602]
[1772124906545,38.00972222,84.483,84.424,28.07567243]
[1772124906839,27.35702222,84.483,84.427,28.07567243]
[1772124907041,165.5658,84.556,84.42,8.64101233]
[1772124907042,27.35702222,84.526,84.441,28.07567243]
[1772124907942,10.6487,84.515,84.444,28.07567243]
[1772124908342,27.35702222,84.526,84.444,28.07567243]
[1772124908542,10.6494,84.509,84.444,28.07567243]
[1772124909138,10.6483,84.518,84.46,8.64101233]
[1772124909943,27.35702222,84.526,84.461,27.70659943]
[1772124911242,10.6487,84.515,84.461,27.70659943]
[1772124913844,27.24165844,84.507,84.43,14.60367449]
[1772124914043,27.24165844,84.507,84.43,27.70659943]
[1772124914948,10.654,84.473,84.43,27.70659943]
[1772124915344,10.655,84.465,84.412,27.70659943]
[1772124915542,27.24165844,84.465,84.412,27.70659943]
[1772124915850,10.6571,84.448,84.4,8.64058586]
[1772124916049,27.24165844,84.465,84.372,21.90551174]
[1772124916050,27.24165844,84.449,84.38,8.64058586]
[1772124916453,10.6593,84.431,84.38,8.64058586]
[1772124917244,27.24165844,84.501,84.381,27.70659943]
[1772124917443,27.24165844,84.489,84.401,27.70659943]
[1772124917752,27.24165844,84.489,84.391,27.70659943]
[1772124918050,10.6567,84.451,84.391,27.70659943]
[1772124918244,27.24165844,84.45,84.391,27.70659943]
[1772124918451,27.24165844,84.444,84.391,27.70659943]
[1772124918852,27.24165844,84.444,84.39,8.64058586]
[1772124919948,10.6578,84.443,84.39,8.64058586]
[1772124920150,27.24165844,84.489,84.391,27.70659943]
[1772124920650,27.24165844,84.473,84.411,27.70659943]
[1772124921051,27.24165844,84.473,84.411,38.6847387]
[1772124921246,27.24165844,84.473,84.417,10.97813927]
[1772124921853,27.24165844,84.473,84.421,10.97813927]
[1772124922050,8.64058586,84.51,84.41,19.30238586]
[1772124922051,27.24165844,84.493,84.425,10.97813927]
[1772124922248,27.24165844,84.493,84.427,10.97813927]
[1772124922453,10.6531,84.48,84.426,10.97813927]
[1772124922650,10.6531,84.48,84.427,10.97813927]
[1772124922851,27.24165844,84.493,84.432,27.70659943]
[1772124923055,10.6506,84.5,84.434,27.70659943]
[1772124923655,27.24165844,84.506,84.451,27.70659943]
[1772124924052,27.24165844,84.506,84.457,10.97813927]
[1772124924354,27.24165844,84.506,84.458,10.97813927]
[1772124924552,10.6502,84.503,84.458,10.97813927]
[1772124925152,27.24165844,84.506,84.458,10.97813927]
[1772124926253,27.24165844,84.502,84.458,10.97813927]
[1772124926456,27.24165844,84.502,84.447,10.97813927]
[1772124926759,27.24165844,84.502,84.45,10.97813927]
[1772124926956,27.24165844,84.502,84.454,10.97813927]
[1772124927661,10.6516,84.492,84.454,10.97813927]
[1772124927961,27.24165844,84.491,84.445,10.97813927]
[1772124928150,10.6535,84.477,84.435,10.97813927]
[1772124928352,10.6535,84.477,84.43,10.97813927]
[1772124928856,27.24165844,84.476,84.43,10.97813927]
[1772124929057,27.24165844,84.476,84.417,14.63168757]
[1772124929257,10.6575,84.445,84.39,27.70659943]
[1772124929561,27.24165844,84.499,84.401,27.70659943]
[1772124929857,10.6554,84.462,84.401,27.70659943]
[1772124930060,27.24165844,84.494,84.421,27.70659943]
[1772124930654,27.24165844,84.494,84.411,27.70659943]
[1772124931052,10.6527,84.483,84.431,27.70659943]
[1772124931655,10.6537,84.475,84.431,27.70659943]
[1772124931854,27.24165844,84.494,84.431,27.70659943]
[1772124932455,10.6546,84.468,84.431,27.70659943]
[1772124932855,27.24165844,84.494,84.41,8.64058586]
[1772124933255,10.6551,84.464,84.41,8.64058586]
[1772124933759,27.24165844,84.494,84.41,8.64058586]
[1772124934860,10.654,84.473,84.411,38.85534407]
[1772124935059,10.654,84.473,84.412,28.19364407]
[1772124935260,27.24165844,84.494,84.412,28.19364407]
[1772124935863,27.24165844,84.494,84.43,8.64058586]
[1772124936057,10.6537,84.475,84.43,8.64058586]
[1772124937159,10.6548,84.467,84.43,8.64058586]
[1772124937462,29.98044277,84.478,84.415,28.19364407]
[1772124937857,10.6556,84.46,84.415,28.19364407]
[1772124938052,29.98044277,84.482,84.411,28.19364407]
[1772124938356,29.98044277,84.482,84.413,21.9668383]
[1772124938659,29.98044277,84.482,84.416,28.19364407]
[1772124939853,29.98044277,84.482,84.419,29.36407429]
[1772124940063,29.98044277,84.482,84.41,8.64058586]
[1772124940562,29.98044277,84.482,84.402,29.36407429]
[1772124941259,29.98044277,84.482,84.403,29.36407429]
[1772124941463,10.6601,84.424,84.386,21.9668383]
[1772124941757,28.35547345,84.433,84.37,8.64058586]
[1772124941962,28.35547345,84.433,84.368,29.36407429]
[1772124942159,8.64058586,84.46,84.361,21.9668383]
[1772124942160,28.35547345,84.45,84.371,29.36407429]
[1772124942564,28.35547345,84.449,84.371,29.36407429]
[1772124942958,10.6614,84.414,84.351,29.36407429]
[1772124943358,28.35547345,84.421,84.351,29.36407429]
[1772124943359,10.6623,84.407,84.353,10.669]
[1772124943665,10.6623,84.407,84.354,29.36407429]
[1772124944464,10.6632,84.4,84.354,29.36407429]
[1772124944666,28.35547345,84.421,84.34,8.64058586]
[1772124945061,28.35547345,84.405,84.335,29.36407429]
[1772124945259,28.35547345,84.405,84.321,29.36407429]
[1772124946064,8.64058586,84.41,84.321,29.36407429]
[1772124946065,28.35547345,84.387,84.321,29.36407429]
[1772124946663,10.6664,84.375,84.321,29.36407429]
[1772124946861,28.35547345,84.374,84.321,29.36407429]
[1772124947457,10.6671,84.369,84.321,29.36407429]
[1772124947657,28.35547345,84.374,84.321,29.36407429]
[1772124947863,28.35547345,84.409,84.321,29.36407429]
[1772124948165,28.35547345,84.427,84.363,29.36407429]
[1772124949062,28.35547345,84.427,84.375,29.36407429]
[1772124949460,28.35547345,84.447,84.38,38.00466015]
[1772124949666,28.35547345,84.447,84.381,29.36407429]
[1772124949861,28.35547345,84.44,84.381,29.36407429]
[1772124950264,10.6582,84.439,84.381,29.36407429]
[1772124950558,39.01367345,84.439,84.381,29.36407429]
[1772124951165,28.35547345,84.439,84.361,29.36407429]
[1772124951767,28.35547345,84.439,84.381,29.36407429]
[1772124952261,28.35547345,84.439,84.382,10.6654]
[1772124953167,28.35547345,84.457,84.387,29.36407429]
[1772124953361,28.35547345,84.457,84.401,29.36407429]
[1772124953769,28.35547345,84.477,84.401,29.36407429]
[1772124953964,28.35547345,84.477,84.411,29.36407429]
[1772124955069,28.35547345,84.477,84.414,29.36407429]
[1772124955665,10.6527,84.483,84.416,29.36407429]
[1772124955967,10.6527,84.483,84.361,165.9469]
[1772124955968,28.35547345,84.497,84.421,29.36407429]
[1772124956571,39.00687345,84.494,84.424,29.36407429]
[1772124956865,28.35547345,84.494,84.424,29.36407429]
[1772124957066,10.6535,84.477,84.424,29.36407429]
[1772124958366,10.6523,84.486,84.424,29.36407429]
[1772124960369,39.00907345,84.476,84.424,29.36407429]
[1772124960967,10.654,84.473,84.424,29.36407429]
[1772124961167,28.35547345,84.472,84.403,29.36407429]